fUST/lending_fUST_20250227
["ID","MTS","AMOUNT","RATE_DAILY","PERIOD"]
[354711289,1740636639081,-548.9,0.00046575,120]
[354711290,1740636639090,-2486.44,0.00046575,120]
[354711291,1740636639099,-2416.6,0.00046575,120]
[354711292,1740636639109,-500.0,0.00046575,120]
[354711293,1740636639118,-500.0,0.00046575,120]
[354711294,1740636639127,-500.0,0.00046575,120]
[354711295,1740636639137,-500.0,0.00046575,120]
[354711296,1740636639146,-1450.45,0.00046575,120]
[354711297,1740636639155,-718.0,0.00046575,120]
[354711298,1740636639164,-870.2,0.00046575,120]
[354711299,1740636639174,-500.0,0.00046575,120]
[354711300,1740636639183,-500.0,0.00046575,120]
[354711301,1740636639192,-566.3,0.00046575,120]
[354711302,1740636639202,-992.9,0.00046575,120]
[354711303,1740636639211,-500.0,0.00046575,120]
[354711304,1740636639221,-500.0,0.00046575,120]
[354711305,1740636639230,-500.0,0.00046575,120]
[354711306,1740636639239,-500.0,0.00046575,120]
[354711307,1740636639249,-500.0,0.00046575,120]
[354711308,1740636639258,-294.0720782,0.00046575,120]
[354711309,1740636639268,-615.02,0.00046575,120]
[354711310,1740636639278,-500.0,0.00046575,120]
[354711311,1740636639288,-741.11,0.00046575,120]
[354711312,1740636639298,-500.0,0.00046575,120]
[354711313,1740636639307,-559.99,0.00046575,120]
[354711314,1740636639317,-1192.18,0.00046575,120]
[354711315,1740636639326,-1459.01,0.00046575,120]
[354711316,1740636639336,-500.0,0.00046575,120]
[354711317,1740636639345,-500.0,0.00046575,120]
[354711319,1740636639355,-1471.45,0.00046575,120]
[354711320,1740636639364,-500.0,0.00046575,120]
[354711321,1740636639374,-500.0,0.00046575,120]
[354711322,1740636639384,-3398.72,0.00046575,120]
[354711323,1740636639394,-500.0,0.00046575,120]
[354711324,1740636639404,-784.77,0.00046575,120]
[354711325,1740636639413,-500.0,0.00046575,120]
[354711326,1740636639423,-500.0,0.00046575,120]
[354711327,1740636639434,-500.0,0.00046575,120]
[354711328,1740636639446,-1227.62,0.00046575,120]
[354711329,1740636639456,-500.0,0.00046575,120]
[354711330,1740636639466,-500.0,0.00046575,120]
[354711331,1740636639476,-500.0,0.00046575,120]
[354711332,1740636639485,-1307.07,0.00046575,120]
[354711333,1740636639495,-683.37,0.00046575,120]
[354711334,1740636639505,-1479.98,0.00046575,120]
[354711335,1740636639515,-500.0,0.00046575,120]
[354711336,1740636639524,-500.0,0.00046575,120]
[354711337,1740636639534,-10494.63,0.00046575,6]
[354711338,1740636639544,-462.390218,0.00046575,120]
[354711339,1740636639553,-500.0,0.00046575,120]
[354711340,1740636639562,-308.51038791,0.00046575,120]
[354711341,1740636639572,-1046.07,0.00046575,120]
[354711342,1740636639581,-500.0,0.00046575,120]
[354711343,1740636639591,-500.0,0.00046575,120]
[354711344,1740636639601,-500.0,0.00046575,120]
[354711345,1740636639610,-15773.94,0.00046575,120]
[354711347,1740636639624,-1681.59,0.00046575,120]
[354711348,1740636639634,-500.0,0.00046575,120]
[354711349,1740636639643,-500.0,0.00046575,120]
[354711350,1740636639653,-2863.46,0.00046575,120]
[354711351,1740636639662,-1659.9,0.00046575,120]
[354711353,1740636639672,-6760.47,0.00046575,120]
[354711355,1740636639681,-500.0,0.00046575,120]
[354711357,1740636639690,-902.69,0.00046575,120]
[354711358,1740636639702,-500.0,0.00046575,120]
[354711360,1740636639711,-4531.97,0.00046575,120]
[354711361,1740636639722,-500.0,0.00046575,120]
[354711363,1740636639732,-500.0,0.00046575,120]
[354711365,1740636639742,-500.0,0.00046849,120]
[354711367,1740636639752,-274.83,0.00046849,120]
[354711368,1740636639762,-453.72,0.00046849,120]
[354711370,1740636639772,-350.22,0.00046849,120]
[354711371,1740636639783,-1003.28,0.00046849,120]
[354711372,1740636639793,-519.75,0.00046849,120]
[354711373,1740636639802,-607.36,0.00046849,120]
[354711374,1740636639812,-500.0,0.00046849,120]
[354711375,1740636639822,-500.0,0.00046849,120]
[354711376,1740636639831,-500.0,0.00046849,120]
[354711378,1740636639840,-500.0,0.00046849,120]
[354711380,1740636639849,-500.0,0.00046849,120]
[354711382,1740636639859,-500.0,0.00046849,120]
[354711384,1740636639874,-500.0,0.00046849,120]
[354711386,1740636639886,-500.0,0.00046849,120]
[354711388,1740636639899,-500.0,0.00046849,120]
[354711390,1740636639913,-500.0,0.00046849,120]
[354711392,1740636639926,-500.0,0.00046849,120]
[354711394,1740636639939,-1089.63,0.00046849,120]
[354711397,1740636639963,-500.0,0.00046849,120]
[354711399,1740636639976,-500.0,0.00046849,120]
[354711401,1740636639987,-500.0,0.00046849,120]
[354711402,1740636639999,-500.0,0.00046849,120]
[354711403,1740636640011,-500.0,0.00046849,120]
[354711404,1740636640024,-500.0,0.00046849,120]
[354711405,1740636640036,-500.0,0.00046849,120]
[354711406,1740636640048,-500.0,0.00046849,120]
[354711407,1740636640060,-4040.76,0.00046849,120]
[354711409,1740636640072,-500.0,0.00046849,120]
[354711410,1740636640084,-500.0,0.00046849,120]
[354711411,1740636640097,-532.01,0.00046849,120]
[354711413,1740636640109,-500.0,0.00046849,120]
[354711415,1740636640121,-500.0,0.00046849,120]
[354711417,1740636640133,-500.0,0.00046849,120]
[354711418,1740636640145,-901.46,0.00046849,120]
[354711419,1740636640157,-500.0,0.00046849,120]
[354711420,1740636640170,-500.0,0.00046849,120]
[354711421,1740636640181,-500.0,0.00046849,120]
[354711422,1740636640193,-58018.98,0.00046849,7]
[354711423,1740636640204,-500.0,0.00046849,120]
[354711424,1740636640215,-1157.88,0.00046849,120]
[354711425,1740636640226,-500.0,0.00046849,120]
[354711426,1740636640241,-500.0,0.00046849,120]
[354711427,1740636640253,-994.86,0.00046849,120]
[354711428,1740636640265,-589.68,0.00046849,120]
[354711429,1740636640277,-904.2,0.00046849,120]
[354711430,1740636640293,-3048.74,0.00046849,120]
[354711431,1740636640304,-600.08,0.00046849,120]
[354711432,1740636640316,-500.0,0.00046849,120]
[354711433,1740636640328,-500.0,0.00046849,120]
[354711434,1740636640339,-11954.2,0.00046849,120]
[354711435,1740636640350,-500.0,0.00046849,120]
[354711436,1740636640361,-500.0,0.00046849,120]
[354711437,1740636640371,-500.0,0.00046849,120]
[354711438,1740636640382,-500.0,0.00046849,120]
[354711439,1740636640392,-500.0,0.00046849,120]
[354711440,1740636640403,-500.0,0.00046849,120]
[354711441,1740636640415,-500.0,0.00046849,120]
[354711442,1740636640425,-907.36,0.00046849,120]
[354711443,1740636640437,-1550.01,0.00046849,120]
[354711444,1740636640451,-500.0,0.00046849,120]
[354711445,1740636640461,-575.44,0.00046849,120]
[354711446,1740636640472,-531.14,0.00046849,120]
[354711447,1740636640484,-1848.55,0.00046849,120]
[354711448,1740636640495,-500.0,0.00046849,30]
[354711449,1740636640506,-5425.38,0.00046849,3]
[354711450,1740636640520,-533.08,0.00046849,120]
[354711451,1740636640531,-500.0,0.00046849,120]
[354711452,1740636640544,-500.0,0.00046849,120]
[354711453,1740636640556,-1888.18,0.00046849,120]
[354711454,1740636640568,-500.0,0.00046849,120]
[354711455,1740636640580,-613.75266609,0.00046849,120]
[354711456,1740636640591,-500.0,0.00046849,120]
[354711457,1740636640602,-500.0,0.00046849,120]
[354711458,1740636640612,-610.94,0.00046849,120]
[354711459,1740636640623,-500.0,0.00046849,120]
[354711460,1740636640634,-548.9,0.00046849,120]
[354711461,1740636640644,-2486.44,0.00046849,120]
[354711462,1740636640654,-2416.6,0.00046849,120]
[354711463,1740636640666,-500.0,0.00046849,120]
[354711464,1740636640678,-547.15013859,0.00046849,120]
[354711465,1740636640692,-500.0,0.00046849,120]
[354711466,1740636640706,-1450.45,0.00046849,120]
[354711467,1740636640717,-718.0,0.00046849,120]
[354711468,1740636640728,-870.2,0.00046849,120]
[354711469,1740636640738,-500.0,0.00046849,120]
[354711470,1740636640749,-500.0,0.00046849,120]
[354711471,1740636640759,-566.3,0.00046849,120]
[354711472,1740636640770,-992.9,0.00046849,120]
[354711473,1740636640781,-500.0,0.00046849,120]
[354711474,1740636640793,-500.0,0.00046849,120]
[354711475,1740636640806,-500.0,0.00046849,120]
[354711476,1740636640821,-615.02,0.00046849,120]
[354711477,1740636640832,-500.0,0.00046849,120]
[354711478,1740636640843,-741.11,0.00046849,120]
[354711479,1740636640853,-500.0,0.00046849,120]
[354711480,1740636640863,-559.99,0.00046849,120]
[354711481,1740636640873,-1192.18,0.00046849,120]
[354711482,1740636640884,-1459.01,0.00046849,120]
[354711483,1740636640896,-500.0,0.00046849,120]
[354711484,1740636640907,-1471.45,0.00046849,120]
[354711485,1740636640918,-500.0,0.00046849,120]
[354711486,1740636640929,-500.0,0.00046849,120]
[354711487,1740636640940,-3398.72,0.00046849,120]
[354711488,1740636640950,-500.0,0.00046849,120]
[354711489,1740636640962,-784.77,0.00046849,120]
[354711490,1740636640973,-500.0,0.00046849,120]
[354711491,1740636640985,-500.0,0.00046849,120]
[354711492,1740636640997,-500.0,0.00046849,120]
[354711493,1740636641009,-1227.62,0.00046849,120]
[354711494,1740636641021,-500.0,0.00046849,120]
[354711495,1740636641032,-500.0,0.00046849,120]
[354711496,1740636641044,-500.0,0.00046849,120]
[354711497,1740636641056,-1307.07,0.00046849,120]
[354711498,1740636641068,-683.37,0.00046849,120]
[354711499,1740636641080,-1479.98,0.00046849,120]
[354711500,1740636641091,-500.0,0.00046849,120]
[354711501,1740636641103,-10494.63,0.00046849,6]
[354711502,1740636641117,-500.0,0.00046849,120]
[354711503,1740636641128,-1046.07,0.00046849,120]
[354711504,1740636641141,-569.51165833,0.00046849,120]
[354711505,1740636641153,-500.0,0.00046849,120]
[354711506,1740636641165,-15773.94,0.00046849,120]
[354711507,1740636641175,-1681.59,0.00046849,120]
[354711508,1740636641186,-500.0,0.00046849,120]
[354711509,1740636641199,-250.34,0.00046849,120]
[354711510,1740636641211,-2863.46,0.00046849,120]
[354711511,1740636641221,-1659.9,0.00046849,120]
[354711512,1740636641233,-6760.47,0.00046849,120]
[354711513,1740636641243,-902.69,0.00046849,120]
[354711514,1740636641254,-4531.97,0.00046849,120]
[354711515,1740636641265,-500.0,0.00046849,120]
[354711516,1740636641275,-500.0,0.00046849,120]
[354711517,1740636641287,-201.59847828,0.000469,10]
[354711518,1740636641298,-225.0,0.0004703,75]
[354711519,1740636641308,-500.0,0.00047111,10]
[354711520,1740636641319,-500.0,0.00047123,120]
[354711521,1740636641330,-265.88675,0.00047123,120]
[354711522,1740636641340,-1003.28,0.00047123,120]
[354711523,1740636641351,-519.75,0.00047123,120]
[354711524,1740636641361,-607.36,0.00047123,120]
[354711525,1740636641372,-500.0,0.00047123,120]
[354711526,1740636641382,-500.0,0.00047123,120]
[354711527,1740636641393,-500.0,0.00047123,120]
[354711528,1740636641403,-500.0,0.00047123,120]
[354711529,1740636641414,-500.0,0.00047123,120]
[354711530,1740636641424,-500.0,0.00047123,120]
[354711531,1740636641435,-500.0,0.00047123,120]
[354711532,1740636641445,-500.0,0.00047123,120]
[354711533,1740636641456,-500.0,0.00047123,120]
[354711534,1740636641466,-500.0,0.00047123,120]
[354711535,1740636641476,-500.0,0.00047123,120]
[354711536,1740636641487,-1089.63,0.00047123,120]
[354711537,1740636641498,-500.0,0.00047123,120]
[354711538,1740636641508,-500.0,0.00047123,120]
[354711539,1740636641519,-500.0,0.00047123,120]
[354711540,1740636641529,-500.0,0.00047123,120]
[354711541,1740636641541,-500.0,0.00047123,120]
[354711542,1740636641552,-500.0,0.00047123,120]
[354711543,1740636641562,-500.0,0.00047123,120]
[354711544,1740636641572,-500.0,0.00047123,120]
[354711545,1740636641583,-4040.76,0.00047123,120]
[354711546,1740636641593,-500.0,0.00047123,120]
[354711547,1740636641603,-532.01,0.00047123,120]
[354711548,1740636641616,-500.0,0.00047123,120]
[354711549,1740636641630,-500.0,0.00047123,120]
[354711550,1740636641642,-500.0,0.00047123,120]
[354711551,1740636641652,-901.46,0.00047123,120]
[354711552,1740636641663,-500.0,0.00047123,120]
[354711553,1740636641673,-500.0,0.00047123,120]
[354711554,1740636641684,-58018.98,0.00047123,7]
[354711555,1740636641695,-1157.88,0.00047123,120]
[354711556,1740636641706,-994.86,0.00047123,120]
[354711557,1740636641717,-589.68,0.00047123,120]
[354711558,1740636641727,-904.2,0.00047123,120]
[354711559,1740636641738,-3048.74,0.00047123,120]
[354711560,1740636641748,-600.08,0.00047123,120]
[354711561,1740636641759,-500.0,0.00047123,120]
[354711562,1740636641770,-500.0,0.00047123,120]
[354711563,1740636641781,-11954.2,0.00047123,120]
[354711564,1740636641794,-500.0,0.00047123,120]
[354711565,1740636641804,-500.0,0.00047123,120]
[354711566,1740636641815,-362.41678,0.00047123,120]
[354711567,1740636641825,-500.0,0.00047123,120]
[354711568,1740636641835,-500.0,0.00047123,120]
[354711569,1740636641846,-500.0,0.00047123,120]
[354711570,1740636641856,-500.0,0.00047123,120]
[354711571,1740636641867,-907.36,0.00047123,120]
[354711572,1740636641877,-1550.01,0.00047123,120]
[354711573,1740636641887,-500.0,0.00047123,120]
[354711574,1740636641898,-575.44,0.00047123,120]
[354711575,1740636641909,-531.14,0.00047123,120]
[354711576,1740636641919,-1848.55,0.00047123,120]
[354711577,1740636641931,-500.0,0.00047123,30]
[354711578,1740636641943,-5425.38,0.00047123,3]
[354711579,1740636641956,-533.08,0.00047123,120]
[354711580,1740636641968,-500.0,0.00047123,120]
[354711581,1740636641979,-500.0,0.00047123,120]
[354711582,1740636641989,-1888.18,0.00047123,120]
[354711583,1740636641999,-500.0,0.00047123,120]
[354711584,1740636642009,-500.0,0.00047123,120]
[354711585,1740636642019,-500.0,0.00047123,120]
[354711586,1740636642029,-610.94,0.00047123,120]
[354711587,1740636642042,-500.0,0.00047123,120]
[354711588,1740636642052,-548.9,0.00047123,120]
[354711589,1740636642062,-2486.44,0.00047123,120]
[354711590,1740636642072,-2416.6,0.00047123,120]
[354711591,1740636642083,-500.0,0.00047123,120]
[354711592,1740636642092,-500.0,0.00047123,120]
[354711593,1740636642103,-1450.45,0.00047123,120]
[354711594,1740636642113,-718.0,0.00047123,120]
[354711595,1740636642123,-870.2,0.00047123,120]
[354711596,1740636642134,-500.0,0.00047123,120]
[354711597,1740636642144,-500.0,0.00047123,120]
[354711598,1740636642154,-566.3,0.00047123,120]
[354711599,1740636642165,-992.9,0.00047123,120]
[354711600,1740636642176,-500.0,0.00047123,120]
[354711601,1740636642187,-500.0,0.00047123,120]
[354711602,1740636642197,-500.0,0.00047123,120]
[354711604,1740636642427,-615.02,0.00047123,120]
[354711605,1740636642443,-500.0,0.00047123,120]
[354711606,1740636642453,-741.11,0.00047123,120]
[354711607,1740636642463,-559.99,0.00047123,120]
[354711608,1740636642472,-1192.18,0.00047123,120]
[354711609,1740636642481,-1459.01,0.00047123,120]
[354711610,1740636642491,-500.0,0.00047123,120]
[354711612,1740636642500,-1471.45,0.00047123,120]
[354711613,1740636642510,-500.0,0.00047123,120]
[354711615,1740636642520,-500.0,0.00047123,120]
[354711617,1740636642529,-3398.72,0.00047123,120]
[354711618,1740636642539,-500.0,0.00047123,120]
[354711619,1740636642548,-784.77,0.00047123,120]
[354711620,1740636642558,-500.0,0.00047123,120]
[354711621,1740636642567,-500.0,0.00047123,120]
[354711622,1740636642576,-500.0,0.00047123,120]
[354711623,1740636642585,-1227.62,0.00047123,120]
[354711624,1740636642596,-500.0,0.00047123,120]
[354711625,1740636642605,-500.0,0.00047123,120]
[354711626,1740636642615,-500.0,0.00047123,120]
[354711627,1740636642627,-1307.07,0.00047123,120]
[354711629,1740636642636,-683.37,0.00047123,120]
[354711630,1740636642645,-1479.98,0.00047123,120]
[354711631,1740636642655,-500.0,0.00047123,120]
[354711632,1740636642664,-10494.63,0.00047123,6]
[354711633,1740636642676,-500.0,0.00047123,120]
[354711634,1740636642685,-1046.07,0.00047123,120]
[354711635,1740636642694,-15773.94,0.00047123,120]
[354711636,1740636642704,-1681.59,0.00047123,120]
[354711637,1740636642714,-500.0,0.00047123,120]
[354711638,1740636642723,-2863.46,0.00047123,120]
[354711639,1740636642733,-1659.9,0.00047123,120]
[354711640,1740636642742,-6760.47,0.00047123,120]
[354711641,1740636642751,-902.69,0.00047123,120]
[354711642,1740636642760,-4531.97,0.00047123,120]
[354711643,1740636642769,-359.71,0.00047123,120]
[354711644,1740636642778,-500.0,0.00047123,120]
[354711645,1740636642788,-487.12067646,0.0004716,10]
[354711646,1740636642797,-500.0,0.00047276,10]
[354711647,1740636642807,-226.21346484,0.00047396,120]
[354711648,1740636642815,-500.0,0.00047396,120]
[354711649,1740636642824,-500.0,0.00047396,120]
[354711650,1740636642833,-500.0,0.00047396,31]
[354711651,1740636642843,-500.0,0.00047396,31]
[354711652,1740636642851,-434.23145553,0.00047396,120]
[354711653,1740636642860,-302.30234153,0.00047396,31]
[354711654,1740636642870,-524.04928642,0.00047396,120]
[354711655,1740636642879,-500.0,0.00047397,120]
[354711656,1740636642888,-1003.28,0.00047397,120]
[354711657,1740636642897,-519.75,0.00047397,120]
[354711658,1740636642907,-607.36,0.00047397,120]
[354711659,1740636642916,-500.0,0.00047397,120]
[354711660,1740636642925,-500.0,0.00047397,120]
[354711661,1740636642935,-500.0,0.00047397,120]
[354711662,1740636642944,-300.0,0.00047397,120]
[354711663,1740636642953,-500.0,0.00047397,120]
[354711664,1740636642964,-500.0,0.00047397,120]
[354711665,1740636642973,-500.0,0.00047397,120]
[354711666,1740636642982,-500.0,0.00047397,120]
[354711667,1740636642991,-500.0,0.00047397,120]
[354711668,1740636643001,-500.0,0.00047397,120]
[354711669,1740636643010,-500.0,0.00047397,120]
[354711670,1740636643020,-1089.63,0.00047397,120]
[354711671,1740636643029,-500.0,0.00047397,120]
[354711672,1740636643039,-549.46127435,0.00047397,120]
[354711673,1740636643048,-500.0,0.00047397,120]
[354711674,1740636643057,-500.0,0.00047397,120]
[354711675,1740636643067,-238.4605859,0.00047397,120]
[354711676,1740636643076,-500.0,0.00047397,120]
[354711677,1740636643086,-500.0,0.00047397,120]
[354711678,1740636643095,-500.0,0.00047397,120]
[354711679,1740636643105,-4040.76,0.00047397,120]
[354711680,1740636643115,-500.0,0.00047397,120]
[354711681,1740636643124,-532.01,0.00047397,120]
[354711682,1740636643133,-500.0,0.00047397,120]
[354711683,1740636643143,-500.0,0.00047397,120]
[354711684,1740636643152,-500.0,0.00047397,120]
[354711685,1740636643162,-901.46,0.00047397,120]
[354711686,1740636643171,-500.0,0.00047397,120]
[354711687,1740636643181,-500.0,0.00047397,120]
[354711688,1740636643190,-58018.98,0.00047397,7]
[354711689,1740636643199,-1157.88,0.00047397,120]
[354711690,1740636643209,-994.86,0.00047397,120]
[354711691,1740636643219,-589.68,0.00047397,120]
[354711692,1740636643228,-904.2,0.00047397,120]
[354711693,1740636643237,-3048.74,0.00047397,120]
[354711694,1740636643247,-600.08,0.00047397,120]
[354711695,1740636643256,-500.0,0.00047397,120]
[354711696,1740636643265,-500.0,0.00047397,120]
[354711697,1740636643275,-11954.2,0.00047397,120]
[354711698,1740636643284,-500.0,0.00047397,120]
[354711699,1740636643296,-500.0,0.00047397,120]
[354711700,1740636643305,-500.0,0.00047397,120]
[354711701,1740636643315,-500.0,0.00047397,120]
[354711702,1740636643324,-500.0,0.00047397,120]
[354711703,1740636643333,-500.0,0.00047397,120]
[354711704,1740636643343,-907.36,0.00047397,120]
[354711705,1740636643352,-1550.01,0.00047397,120]
[354711706,1740636643362,-500.0,0.00047397,120]
[354711707,1740636643371,-575.44,0.00047397,120]
[354711708,1740636643381,-531.14,0.00047397,120]
[354711709,1740636643391,-1848.55,0.00047397,120]
[354711710,1740636643400,-500.0,0.00047397,30]
[354711711,1740636643410,-5425.38,0.00047397,3]
[354711712,1740636643420,-533.08,0.00047397,120]
[354711713,1740636643430,-500.0,0.00047397,120]
[354711714,1740636643439,-500.0,0.00047397,120]
[354711715,1740636643449,-1888.18,0.00047397,120]
[354711717,1740636643458,-500.0,0.00047397,120]
[354711719,1740636643467,-500.0,0.00047397,120]
[354711720,1740636643476,-500.0,0.00047397,120]
[354711721,1740636643485,-610.94,0.00047397,120]
[354711723,1740636643495,-500.0,0.00047397,120]
[354711726,1740636643504,-548.9,0.00047397,120]
[354711728,1740636643514,-2486.44,0.00047397,120]
[354711729,1740636643523,-2416.6,0.00047397,120]
[354711732,1740636643533,-500.0,0.00047397,120]
[354711735,1740636643543,-500.0,0.00047397,120]
[354711738,1740636643552,-1450.45,0.00047397,120]
[354711743,1740636643561,-718.0,0.00047397,120]
[354711744,1740636643571,-870.2,0.00047397,120]
[354711747,1740636643580,-500.0,0.00047397,120]
[354711750,1740636643589,-500.0,0.00047397,120]
[354711753,1740636643598,-566.3,0.00047397,120]
[354711755,1740636643607,-992.9,0.00047397,120]
[354711756,1740636643617,-500.0,0.00047397,120]
[354711757,1740636643629,-500.0,0.00047397,120]
[354711758,1740636643638,-500.0,0.00047397,120]
[354711759,1740636643647,-615.02,0.00047397,120]
[354711760,1740636643657,-500.0,0.00047397,120]
[354711761,1740636643669,-741.11,0.00047397,120]
[354711762,1740636643679,-559.99,0.00047397,120]
[354711763,1740636643688,-1192.18,0.00047397,120]
[354711764,1740636643697,-1459.01,0.00047397,120]
[354711765,1740636643707,-500.0,0.00047397,120]
[354711766,1740636643717,-1471.45,0.00047397,120]
[354711767,1740636643726,-500.0,0.00047397,120]
[354711769,1740636643735,-500.0,0.00047397,120]
[354711770,1740636643745,-3398.72,0.00047397,120]
[354711771,1740636643754,-500.0,0.00047397,120]
[354711772,1740636643763,-784.77,0.00047397,120]
[354711773,1740636643772,-500.0,0.00047397,120]
[354711774,1740636643781,-500.0,0.00047397,120]
[354711775,1740636643791,-500.0,0.00047397,120]
[354711776,1740636643800,-1227.62,0.00047397,120]
[354711777,1740636643809,-500.0,0.00047397,120]
[354711778,1740636643819,-500.0,0.00047397,120]
[354711779,1740636643828,-500.0,0.00047397,120]
[354711780,1740636643837,-1307.07,0.00047397,120]
[354711781,1740636643846,-683.37,0.00047397,120]
[354711782,1740636643855,-1479.98,0.00047397,120]
[354711783,1740636643865,-500.0,0.00047397,120]
[354711784,1740636643874,-10494.63,0.00047397,6]
[354711785,1740636643883,-500.0,0.00047397,120]
[354711786,1740636643892,-1046.07,0.00047397,120]
[354711787,1740636643901,-15773.94,0.00047397,120]
[354711788,1740636643910,-1681.59,0.00047397,120]
[354711789,1740636643920,-500.0,0.00047397,120]
[354711790,1740636643929,-2863.46,0.00047397,120]
[354711791,1740636643939,-1659.9,0.00047397,120]
[354711792,1740636643948,-6760.47,0.00047397,120]
[354711793,1740636643958,-902.69,0.00047397,120]
[354711794,1740636643967,-4531.97,0.00047397,120]
[354711795,1740636643977,-500.0,0.00047397,120]
[354711796,1740636643986,-500.0,0.00047493,120]
[354711797,1740636643995,-500.0,0.00047493,120]
[354711798,1740636644004,-500.0,0.00047493,120]
[354711799,1740636644016,-500.0,0.00047493,120]
[354711800,1740636644026,-500.0,0.00047493,120]
[354711801,1740636644035,-500.0,0.00047493,120]
[354711802,1740636644045,-500.0,0.00047493,120]
[354711803,1740636644056,-500.0,0.00047493,120]
[354711804,1740636644065,-500.0,0.00047493,120]
[354711805,1740636644075,-500.0,0.00047493,120]
[354711806,1740636644084,-500.0,0.00047493,120]
[354711807,1740636644094,-500.0,0.00047493,120]
[354711808,1740636644103,-500.0,0.00047493,120]
[354711809,1740636644112,-500.0,0.00047493,120]
[354711810,1740636644121,-500.0,0.00047493,120]
[354711811,1740636644131,-500.0,0.00047493,120]
[354711813,1740636644140,-221.6219975,0.00047523,4]
[354711815,1740636644150,-500.0,0.00047671,120]
[354711817,1740636644159,-1003.28,0.00047671,120]
[354711818,1740636644168,-519.75,0.00047671,120]
[354711819,1740636644177,-607.36,0.00047671,120]
[354711820,1740636644187,-500.0,0.00047671,120]
[354711821,1740636644196,-500.0,0.00047671,120]
[354711822,1740636644206,-500.0,0.00047671,120]
[354711823,1740636644215,-500.0,0.00047671,120]
[354711824,1740636644225,-500.0,0.00047671,120]
[354711825,1740636644234,-500.0,0.00047671,120]
[354711826,1740636644244,-474.2328431,0.00047671,120]
[354711827,1740636644253,-500.0,0.00047671,120]
[354711828,1740636644263,-500.0,0.00047671,120]
[354711829,1740636644272,-500.0,0.00047671,120]
[354711830,1740636644281,-1089.63,0.00047671,120]
[354711831,1740636644291,-500.0,0.00047671,120]
[354711832,1740636644300,-500.0,0.00047671,120]
[354711833,1740636644309,-500.0,0.00047671,120]
[354711834,1740636644319,-500.0,0.00047671,120]
[354711835,1740636644329,-500.0,0.00047671,120]
[354711836,1740636644338,-500.0,0.00047671,120]
[354711837,1740636644348,-4040.76,0.00047671,120]
[354711838,1740636644357,-500.0,0.00047671,120]
[354711839,1740636644367,-532.01,0.00047671,120]
[354711840,1740636644376,-500.0,0.00047671,120]
[354711841,1740636644385,-500.0,0.00047671,120]
[354711842,1740636644395,-500.0,0.00047671,120]
[354711843,1740636644404,-901.46,0.00047671,120]
[354711844,1740636644413,-500.0,0.00047671,120]
[354711845,1740636644422,-500.0,0.00047671,120]
[354711846,1740636644432,-58018.98,0.00047671,7]
[354711847,1740636644442,-1157.88,0.00047671,120]